bitfinex/quotes_SOLUSD_20250802
["timestamp","ask_amount","ask_price","bid_price","bid_amount"]
[1754143330384,0.03,164.92,164.91,6.84520491]
[1754143332022,0.03,164.92,164.91,6.17520491]
[1754143333525,0.03,164.92,164.91,6.84520491]
[1754143334104,0.03,164.92,164.91,6.17520491]
[1754143334926,32.88520491,164.92,164.85,0.06]
[1754143335240,26.0,164.86,164.85,0.06]
[1754143335399,26.0,164.86,164.85,6.23520491]
[1754143335897,26.68,164.86,164.85,0.06]
[1754143336318,26.0,164.87,164.85,6.23520491]
[1754143336832,26.0,164.88,164.86,10.32653892]
[1754143337618,0.03,164.92,164.87,10.99653892]
[1754143337619,0.71,164.92,164.87,10.99653892]
[1754143337921,0.71,164.92,164.89,10.32653892]
[1754143337922,26.0,164.91,164.89,10.32653892]
[1754143338295,26.0,164.91,164.9,10.32653892]
[1754143338519,26.0,164.91,164.89,10.32653892]
[1754143338903,0.68,164.9,164.85,0.06]
[1754143339119,0.68,164.9,164.87,10.32653892]
[1754143339904,0.68,164.89,164.87,10.32653892]
[1754143340104,26.03,164.92,164.87,10.32653892]
[1754143340105,0.68,164.9,164.87,10.32653892]
[1754143340307,26.03,164.92,164.88,10.32653892]
[1754143340509,26.71,164.92,164.88,10.32653892]
[1754143340716,0.68,164.91,164.88,10.32653892]
[1754143340930,0.68,164.91,164.89,10.32653892]
[1754143341135,26.0,164.91,164.89,10.32653892]
[1754143341337,0.03,164.92,164.9,10.32653892]
[1754143341514,0.03,164.92,164.91,10.32653892]
[1754143342632,0.03,164.92,164.91,10.99653892]
[1754143343616,0.03,164.92,164.91,10.32653892]
[1754143344010,0.03,164.92,164.85,0.06]
[1754143344011,0.71,164.92,164.85,0.06]
[1754143344220,26.0,164.9,164.88,10.32653892]
[1754143344436,26.68,164.9,164.88,10.32653892]
[1754143344818,26.0,164.88,164.85,0.06]
[1754143345028,0.68,164.87,164.85,0.06]
[1754143345223,26.0,164.86,164.85,0.06]
[1754143347736,26.0,164.87,164.85,11.05653892]
[1754143347930,26.0,164.87,164.86,10.32653892]
[1754143348635,26.68,164.9,164.86,10.32653892]
[1754143348854,26.0,164.89,164.87,10.32653892]
[1754143349716,26.0,164.9,164.88,10.32653892]
[1754143350716,11.00653892,164.89,164.85,10.38653892]
[1754143351043,0.68,164.88,164.85,10.38653892]
[1754143351748,0.68,164.88,164.86,0.06]
[1754143351957,26.71,164.9,164.87,10.32653892]
[1754143352118,0.03,164.9,164.88,10.32653892]
[1754143352323,26.03,164.9,164.89,10.32653892]
[1754143352718,0.03,164.9,164.89,10.98653892]
[1754143354020,0.03,164.9,164.89,10.32653892]
[1754143355028,26.0,164.89,164.86,0.06]
[1754143355222,0.68,164.89,164.86,10.38653892]
[1754143355643,26.0,164.88,164.87,10.32653892]
[1754143356258,26.0,164.89,164.87,10.98653892]
[1754143356725,26.0,164.89,164.88,10.32653892]
[1754143357840,0.03,164.9,164.88,10.98653892]
[1754143358040,0.03,164.9,164.89,10.98653892]
[1754143358928,26.71,164.9,164.86,0.06]
[1754143359133,26.0,164.89,164.88,10.32653892]
[1754143359349,26.0,164.89,164.88,10.98653892]
[1754143360152,26.03,164.9,164.88,10.32653892]
[1754143360666,26.03,164.9,164.86,0.72]
[1754143360667,26.03,164.9,164.89,10.32653892]
[1754143360841,0.03,164.9,164.89,10.98653892]
[1754143361841,0.03,164.9,164.89,38.09776181]
[1754143362648,0.03,164.9,164.89,27.77122289]
[1754143362845,0.03,164.9,164.89,23.63450408]
[1754143363046,0.03,164.9,164.89,6.84982011]
[1754143364461,0.03,164.9,164.89,6.18982011]
[1754143364769,0.03,164.9,164.89,10.97801252]
[1754143366764,0.03,164.9,164.89,27.76269649]
[1754143368080,0.03,164.9,164.89,10.31801252]
[1754143368455,0.03,164.9,164.89,10.97801252]
[1754143369961,0.03,164.9,164.89,38.08070901]
[1754143370972,0.03,164.92,164.9,16.78468397]
[1754143371156,0.03,164.92,164.91,27.10269649]
[1754143371364,0.03,164.92,164.91,27.76269649]
[1754143372451,0.03,164.92,164.91,30.19379049]
[1754143374869,0.03,164.92,164.91,2.431094]
[1754143375073,0.03,164.92,164.91,10.31801252]
[1754143378170,0.71,164.92,164.91,10.31801252]
[1754143378391,0.71,164.92,164.9,10.31801252]
[1754143378886,0.68,164.91,164.9,10.31801252]
[1754143379270,0.03,164.92,164.9,10.31801252]
[1754143379471,0.03,164.92,164.91,10.31801252]
[1754143381284,0.74,164.92,164.91,10.31801252]
[1754143382593,0.74,164.92,164.88,0.72]
[1754143382594,0.74,164.92,164.88,0.06]
[1754143382761,0.74,164.92,164.89,10.31801252]
[1754143383466,26.0,164.89,164.88,0.06]
[1754143383672,26.71,164.89,164.88,0.06]
[1754143385355,26.0,164.89,164.88,6.25494714]
[1754143385886,26.71,164.89,164.88,0.06]
[1754143386967,0.71,164.89,164.88,0.06]
[1754143388686,6.90494714,164.89,164.88,0.06]
[1754143389097,23.68963111,164.89,164.88,0.06]
[1754143390263,49.68963111,164.89,164.88,0.06]
[1754143390466,26.71,164.89,164.88,0.06]
[1754143390694,0.71,164.89,164.88,0.06]
[1754143391201,26.0,164.89,164.88,0.06]
[1754143391403,26.71,164.89,164.88,0.06]
[1754143392099,0.71,164.89,164.88,0.06]
[1754143392399,6.90494714,164.89,164.88,0.06]
[1754143393897,23.68963111,164.89,164.88,0.06]
[1754143394881,55.75428027,164.89,164.88,0.06]
[1754143395085,29.75428027,164.89,164.88,0.06]
[1754143395282,182.04922741,164.89,164.88,0.06]
[1754143395804,175.85428027,164.89,164.88,0.06]
[1754143396698,182.04922741,164.89,164.88,0.06]
[1754143396888,186.1279478,164.89,164.88,0.06]
[1754143397580,22.97963111,164.87,164.86,0.06]
[1754143398101,23.68963111,164.87,164.86,0.06]
[1754143398587,29.75501595,164.87,164.86,0.06]
[1754143399283,26.12338711,164.87,164.86,0.06]
[1754143400384,32.18877195,164.87,164.86,0.06]
[1754143400702,26.12338711,164.87,164.86,0.06]
[1754143400909,32.18877195,164.87,164.86,0.06]
[1754143402304,26.12338711,164.87,164.86,0.06]
[1754143402482,32.18877195,164.87,164.86,0.06]
[1754143402979,35.35682987,164.87,164.86,0.06]
[1754143403901,29.29144503,164.87,164.86,0.06]
[1754143404578,35.35682987,164.87,164.86,0.06]
[1754143407410,29.29144503,164.87,164.86,0.06]
[1754143407599,35.35682987,164.87,164.86,0.06]
[1754143407798,22.38649789,164.87,164.86,0.06]
[1754143408114,26.14768903,164.87,164.86,0.73]
[1754143408418,26.14768903,164.87,164.86,0.06]
[1754143410903,26.85768903,164.87,164.86,0.06]
[1754143412318,26.14768903,164.87,164.86,0.06]
[1754143412897,19.95274189,164.87,164.86,0.06]
[1754143413116,26.14768903,164.87,164.86,0.06]
[1754143414313,26.80768903,164.87,164.86,0.06]
[1754143414803,26.14768903,164.87,164.86,0.06]
[1754143415000,19.95274189,164.87,164.86,0.06]
[1754143415198,26.14768903,164.87,164.86,0.74]
[1754143415594,3.16805792,164.87,164.86,6.93494714]
[1754143415810,16.78468397,164.9,164.86,6.93494714]
[1754143416024,26.0,164.88,164.87,6.19494714]
[1754143416228,26.0,164.88,164.87,0.68]
[1754143417320,26.0,164.87,164.86,0.06]
[1754143417634,49.63963111,164.87,164.86,0.06]
[1754143421236,48.97963111,164.87,164.86,0.06]
[1754143421818,48.97963111,164.87,164.86,0.74]
[1754143422022,152.29494714,164.89,164.86,0.74]
[1754143422215,6.19494714,164.88,164.86,0.74]
[1754143422421,26.0,164.87,164.86,0.74]
[1754143422809,3.19674685,164.9,164.86,6.93494714]
[1754143423011,0.03,164.9,164.89,6.19494714]
[1754143423211,26.03,164.9,164.89,6.87494714]
[1754143423445,0.03,164.9,164.89,6.87494714]
[1754143423732,26.03,164.9,164.89,6.87494714]
[1754143425008,26.03,164.9,164.89,0.68]
[1754143425734,26.0,164.88,164.87,0.68]
[1754143426034,26.0,164.88,164.86,6.25494714]
[1754143426240,6.19494714,164.88,164.86,0.06]
[1754143426558,6.19494714,164.87,164.86,0.06]
[1754143426719,26.0,164.87,164.86,0.06]
[1754143427046,26.0,164.87,164.86,0.74]
[1754143427341,26.0,164.89,164.86,0.74]
[1754143427507,26.0,164.88,164.86,6.93494714]
[1754143427836,26.0,164.88,164.87,0.68]
[1754143428215,26.0,164.89,164.87,0.68]
[1754143428627,26.0,164.88,164.87,0.68]
[1754143429954,10.32579541,164.88,164.86,0.06]
[1754143430118,36.32579541,164.87,164.86,0.06]
[1754143430526,36.98579541,164.87,164.86,0.06]
[1754143430849,36.32579541,164.87,164.86,0.06]
[1754143431865,36.98579541,164.87,164.86,0.06]
[1754143432230,36.32579541,164.87,164.86,0.06]
[1754143432559,10.32579541,164.88,164.86,0.06]
[1754143432726,10.32579541,164.88,164.86,0.74]
[1754143433261,27.77047938,164.87,164.86,0.06]
[1754143433719,27.11047938,164.87,164.86,0.06]
[1754143435038,27.77047938,164.87,164.86,0.06]
[1754143438963,17.44468397,164.87,164.86,0.06]
[1754143440360,21.53424498,164.87,164.86,0.06]
[1754143441132,57.86004039,164.87,164.86,0.06]
[1754143441360,31.86004039,164.87,164.86,0.06]
[1754143443062,37.92542523,164.87,164.86,0.06]
[1754143443368,37.92542523,164.87,164.85,0.06]
[1754143443369,16.78468397,164.86,164.85,0.06]
[1754143443538,37.26579314,164.86,164.85,0.06]
[1754143444063,37.26579314,164.86,164.84,0.06]
[1754143444064,47.96579314,164.86,164.84,0.06]
[1754143444255,31.90004039,164.85,164.84,0.06]
[1754143444660,31.90004039,164.85,164.83,0.06]
[1754143444661,16.78468397,164.84,164.83,0.06]
[1754143444846,31.90004039,164.84,164.83,0.06]
[1754143445669,37.9665291,164.84,164.83,0.06]
[1754143447058,31.90004039,164.84,164.83,0.06]
[1754143447258,37.9665291,164.84,164.83,0.06]
[1754143448781,33.8454497,164.84,164.83,0.06]
[1754143449076,36.2799467,164.84,164.83,0.06]
[1754143449283,20.87424498,164.84,164.83,0.06]
[1754143449441,29.05588869,164.84,164.83,0.06]
[1754143449637,33.83059412,164.84,164.83,0.06]
[1754143451966,29.74588869,164.84,164.83,0.06]
[1754143453092,33.82931074,164.84,164.83,0.06]
[1754143456287,43.82931074,164.84,164.83,0.06]
[1754143456877,33.82931074,164.84,164.83,0.06]
[1754143457078,43.82931074,164.84,164.83,0.06]
[1754143457582,16.78468397,164.8,164.79,0.1]
[1754143457786,22.98939998,164.8,164.79,0.1]
[1754143458785,6.20471601,164.8,164.79,0.1]
[1754143458977,29.89411599,164.8,164.79,0.1]
[1754143459157,29.89411599,164.8,164.77,0.1]
[1754143459158,42.78468397,164.78,164.77,0.1]
[1754143459359,33.13731165,164.78,164.77,0.1]
[1754143459663,33.83731165,164.78,164.77,0.1]
[1754143460392,29.75809763,164.78,164.77,0.1]
[1754143460688,33.83491349,164.78,164.77,0.1]
[1754143461056,33.13491349,164.78,164.77,0.1]
[1754143461263,29.05809763,164.78,164.77,0.1]
[1754143461462,29.75809763,164.78,164.77,0.1]
[1754143462275,22.98939998,164.78,164.77,0.1]
[1754143462589,27.75237988,164.78,164.77,0.82]
[1754143462988,27.75237988,164.78,164.77,0.1]
[1754143463287,34.52107753,164.78,164.77,0.1]
[1754143463860,37.69111404,164.78,164.77,0.1]
[1754143465193,36.99111404,164.78,164.77,0.1]
[1754143465896,41.51204247,164.78,164.77,0.1]
[1754143466099,35.44334482,164.78,164.77,0.1]
[1754143466303,12.45394484,164.78,164.77,0.82]
[1754143466674,4.52092843,164.78,164.77,7.02471601]
[1754143466886,3.80092843,164.78,164.77,7.02471601]
[1754143467088,2.91092843,164.78,164.77,7.02471601]
[1754143467796,3.0343167,164.84,164.77,7.02471601]
[1754143467999,4.87902443,164.82,164.81,6.20471601]
[1754143468301,26.0,164.82,164.81,6.20471601]
[1754143468479,26.0,164.82,164.8,6.20471601]
[1754143468672,26.0,164.82,164.77,0.1]
[1754143468880,26.0,164.81,164.79,6.20471601]
[1754143469781,26.0,164.81,164.8,6.20471601]
[1754143474000,0.03,164.84,164.8,12.40943202]
[1754143474185,0.03,164.84,164.77,0.70690659]
[1754143474388,0.03,164.84,164.81,6.20471601]
[1754143474897,26.0,164.81,164.77,0.1]
[1754143475092,26.0,164.81,164.79,6.20471601]
[1754143475288,26.0,164.81,164.77,0.1]
[1754143475491,26.0,164.8,164.78,6.20471601]
[1754143477117,26.0,164.79,164.77,0.1]
[1754143477684,26.0,164.78,164.77,0.1]
[1754143478204,32.20471601,164.79,164.77,0.1]
[1754143478409,26.0,164.79,164.77,0.1]
[1754143479115,26.0,164.79,164.77,6.30471601]
[1754143480309,26.0,164.79,164.77,0.1]
[1754143481085,26.66,164.79,164.77,0.1]
[1754143481504,26.0,164.79,164.77,0.1]
[1754143481994,26.0,164.78,164.77,0.1]
[1754143482303,0.66,164.79,164.77,0.1]
[1754143482517,26.0,164.78,164.77,0.1]
[1754143483719,26.0,164.79,164.77,0.1]
[1754143485611,26.0,164.79,164.77,6.30471601]
[1754143485787,146.13,164.83,164.78,6.20471601]
[1754143485788,0.69,164.83,164.78,6.20471601]
[1754143485988,0.69,164.83,164.82,6.20471601]
[1754143485989,0.03,164.83,164.82,6.20471601]
[1754143488305,0.03,164.86,164.83,29.19411599]
[1754143488621,0.03,164.86,164.85,12.40943202]
[1754143490126,0.03,164.86,164.85,6.20471601]
[1754143490324,0.03,164.89,164.86,16.78468397]
[1754143490621,0.03,164.89,164.88,12.40943202]
[1754143490830,0.03,164.9,164.88,29.19411599]
[1754143491032,0.03,164.91,164.89,23.59586489]
[1754143491198,0.03,164.91,164.9,6.20471601]
[1754143492800,0.03,164.91,164.9,10.31601664]
[1754143494593,0.69,164.91,164.9,10.31601664]
[1754143495035,0.03,164.91,164.9,10.31601664]
[1754143495412,0.69,164.91,164.86,16.78468397]
[1754143495608,0.69,164.91,164.9,10.31601664]
[1754143495814,0.03,164.91,164.9,10.31601664]
[1754143496022,0.03,164.91,164.83,16.78468397]
[1754143496340,0.03,164.91,164.89,10.31601664]
[1754143496506,0.69,164.91,164.89,10.31601664]
[1754143496833,0.66,164.9,164.89,10.31601664]
[1754143497535,0.03,164.91,164.89,10.31601664]
[1754143497703,0.03,164.91,164.9,10.31601664]
[1754143498213,26.03,164.91,164.9,10.31601664]
[1754143498933,26.69,164.91,164.9,10.31601664]
[1754143500432,0.03,164.91,164.9,10.31601664]
[1754143501734,0.03,164.91,164.86,0.60657527]
[1754143501933,0.03,164.91,164.87,16.78468397]
[1754143502110,0.69,164.91,164.9,10.31601664]
[1754143503205,0.03,164.91,164.9,10.31601664]
[1754143503817,0.03,164.91,164.9,20.63203328]
[1754143504220,0.03,164.91,164.9,37.41671725]
[1754143505412,0.03,164.91,164.9,16.78468397]
[1754143505615,0.03,164.91,164.9,37.41671725]
[1754143508535,0.03,164.91,164.9,38.02314538]
[1754143510337,0.03,164.91,164.9,37.41671725]
[1754143510540,0.03,164.91,164.9,27.10070061]
[1754143510750,0.03,164.91,164.88,2.431241]
[1754143510932,0.69,164.91,164.9,10.31601664]
[1754143511135,0.03,164.91,164.9,10.31601664]
[1754143512913,0.03,164.91,164.9,6.19062209]
[1754143513330,0.03,164.91,164.9,6.79705022]
[1754143514333,0.03,164.91,164.9,23.58173419]
[1754143516124,0.03,164.91,164.87,2.431537]
[1754143516125,0.69,164.91,164.87,3.03807548]
[1754143516349,0.66,164.9,164.87,16.78468397]
[1754143516554,0.66,164.9,164.89,6.19062209]
[1754143517153,0.03,164.91,164.89,6.19062209]
[1754143517323,0.03,164.91,164.9,6.19062209]
[1754143525661,0.03,164.91,164.9,23.58173419]
[1754143527245,0.69,164.91,164.9,6.19062209]
[1754143528246,0.69,164.91,164.89,6.19062209]
[1754143529164,0.69,164.91,164.9,6.19062209]
[1754143530253,0.03,164.91,164.9,6.19062209]
[1754143530462,0.69,164.91,164.9,6.19062209]
[1754143531361,0.69,164.91,164.89,6.19062209]
[1754143531930,26.0,164.89,164.88,0.06]
[1754143532385,26.72,164.89,164.88,0.06]
[1754143533038,6.91062209,164.89,164.88,0.06]
[1754143533263,6.91062209,164.89,164.81,6.19062209]
[1754143533264,26.0,164.86,164.81,6.19062209]
[1754143533474,0.72,164.85,164.82,6.19062209]
[1754143533783,26.0,164.84,164.8,6.25062209]
[1754143533980,26.0,164.84,164.83,6.19062209]
[1754143534135,0.72,164.87,164.83,6.19062209]
[1754143534339,26.0,164.88,164.86,6.19062209]
[1754143534758,26.0,164.88,164.85,6.19062209]
[1754143534948,0.72,164.87,164.85,6.19062209]
[1754143535665,0.72,164.86,164.85,6.19062209]
[1754143536064,0.72,164.87,164.85,6.19062209]
[1754143536238,0.72,164.87,164.86,6.19062209]
[1754143536846,26.72,164.89,164.86,6.19062209]
[1754143537176,0.75,164.91,164.88,6.19062209]
[1754143537349,26.03,164.91,164.9,6.19062209]
[1754143538061,0.75,164.91,164.9,6.19062209]
[1754143538259,26.75,164.91,164.9,6.19062209]
[1754143538452,0.75,164.91,164.9,6.19062209]
[1754143541150,0.03,164.91,164.9,6.19062209]
[1754143541469,0.75,164.91,164.9,6.19062209]
[1754143542178,0.75,164.91,164.86,16.78468397]
[1754143542399,0.75,164.91,164.9,6.19062209]
[1754143542400,0.03,164.91,164.9,6.19062209]
[1754143542749,0.03,164.91,164.89,6.19062209]
[1754143542750,26.03,164.91,164.89,6.19062209]
[1754143543056,0.72,164.9,164.89,6.19062209]
[1754143544405,0.03,164.91,164.89,6.19062209]
[1754143544593,0.03,164.91,164.9,6.19062209]
[1754143545622,0.03,164.92,164.9,23.64173419]
[1754143545783,0.03,164.92,164.91,23.03530606]
[1754143546192,0.03,164.95,164.91,29.22592815]
[1754143546518,0.03,164.95,164.94,22.97530606]
[1754143546883,0.03,164.95,164.94,23.00530606]
[1754143547595,0.03,164.95,164.94,31.62643115]
[1754143548505,0.03,164.97,164.95,16.78468397]
[1754143548707,0.03,164.97,164.96,29.16592815]
[1754143549284,0.72,165.04,164.97,16.78468397]
[1754143549487,0.72,165.04,165.03,6.19062209]
[1754143550685,0.03,165.05,165.03,6.19062209]
[1754143550901,0.75,165.05,165.04,6.19062209]
[1754143551109,26.75,165.05,165.04,6.19062209]
[1754143552119,0.03,165.05,165.04,6.19062209]
[1754143553083,0.03,165.05,165.04,29.19592815]
[1754143553498,0.03,165.05,165.04,29.16592815]
[1754143554123,0.03,165.05,165.04,12.38124418]
[1754143555389,0.03,165.05,165.04,14.81041818]
[1754143556926,0.03,165.05,165.04,14.84041818]
[1754143558823,0.03,165.05,165.04,14.81041818]
[1754143559039,0.03,165.05,165.04,31.59510215]
[1754143559504,0.03,165.05,165.04,31.62510215]
[1754143560242,0.03,165.05,165.04,31.59510215]
[1754143560708,0.03,165.05,165.04,25.40448006]
[1754143561099,0.03,165.05,165.04,31.59510215]
[1754143561413,0.72,165.05,165.04,6.19062209]
[1754143561921,0.72,165.05,164.96,6.19062209]
[1754143561922,26.72,165.05,165.01,2.429469]
[1754143562121,26.69,165.04,165.03,6.19062209]
[1754143562509,0.69,165.04,165.01,6.19062209]
[1754143562720,26.69,165.04,165.02,6.19062209]
[1754143562921,0.69,165.03,164.99,16.78468397]
[1754143563111,26.0,165.04,165.02,6.19062209]
[1754143563318,0.03,165.05,165.03,6.19062209]
[1754143563632,0.03,165.05,165.04,6.19062209]
[1754143564028,0.72,165.05,165.04,6.19062209]
[1754143565604,26.72,165.05,164.99,16.78468397]
[1754143565811,0.69,165.04,164.99,16.78468397]
[1754143566149,0.69,165.03,164.99,16.78468397]
[1754143566335,0.69,165.03,165.02,6.19062209]
[1754143566552,26.03,165.05,165.02,6.19062209]
[1754143566836,0.72,165.05,165.04,6.19062209]
[1754143567040,0.03,165.05,165.04,6.19062209]
[1754143567405,0.03,165.05,165.04,12.38124418]
[1754143569754,0.03,165.05,165.04,31.62525015]
[1754143571053,0.03,165.05,165.04,31.59525015]
[1754143573048,0.72,165.05,165.04,19.21400597]
[1754143573232,0.72,165.05,165.04,8.61994409]
[1754143573620,0.72,165.05,165.04,6.19062209]
[1754143574141,0.72,165.05,165.01,89.6]
[1754143574319,0.03,165.05,165.01,92.029617]
[1754143574523,0.03,165.05,165.04,6.19062209]
[1754143575328,0.03,165.05,165.04,12.38124418]
[1754143577645,0.72,165.05,165.04,6.19062209]
[1754143578226,0.72,165.05,165.01,2.429617]
[1754143578430,0.72,165.05,164.98,16.78468397]
[1754143578646,0.72,165.05,165.04,6.19062209]
[1754143579315,0.72,165.05,165.03,6.19062209]
[1754143579513,6.91062209,165.05,165.0,6.19062209]
[1754143579821,0.69,165.04,165.0,6.19062209]
[1754143580230,0.69,165.04,164.97,35.07013297]
[1754143580231,0.69,165.04,165.01,6.19062209]
[1754143580633,0.69,165.03,165.02,6.19062209]
[1754143581024,0.69,165.03,165.01,6.19062209]
[1754143581240,0.69,165.03,165.0,6.19062209]
[1754143581642,0.69,165.03,165.01,6.19062209]
[1754143581926,26.69,165.03,165.01,6.19062209]
[1754143582133,0.69,165.02,164.97,16.84468397]
[1754143582364,0.69,165.02,165.01,6.19062209]
[1754143583757,0.69,165.02,164.97,16.84468397]
[1754143583933,0.69,165.01,165.0,6.19062209]
[1754143584255,0.69,165.01,164.99,6.19062209]
[1754143584662,0.69,165.0,164.99,6.19062209]
[1754143584973,0.69,165.0,164.97,0.06]
[1754143586069,32.88062209,165.0,164.97,0.06]
[1754143586231,0.69,164.99,164.97,0.06]
[1754143586846,0.69,164.99,164.97,6.25062209]
[1754143587230,26.0,165.0,164.97,6.25062209]
[1754143587431,0.69,164.98,164.97,6.25062209]
[1754143587633,26.69,165.0,164.97,6.25062209]
[1754143587846,0.69,164.99,164.98,6.19062209]
[1754143588358,26.0,165.0,164.98,6.19062209]
[1754143588553,26.0,165.0,164.99,6.19062209]
[1754143588554,26.69,165.0,164.99,6.19062209]
[1754143589533,26.69,165.0,164.97,0.06]
[1754143589732,0.69,164.99,164.97,0.06]
[1754143590231,0.69,164.98,164.97,6.25062209]
[1754143590741,0.69,164.98,164.97,0.06]
[1754143591055,26.69,164.98,164.97,0.06]
[1754143591358,6.88062209,164.98,164.95,0.06]
[1754143591560,6.19062209,164.98,164.95,0.06]
[1754143591731,0.69,164.97,164.95,0.06]
[1754143592130,26.0,165.0,164.95,0.06]
[1754143592355,0.69,164.97,164.96,6.19062209]
[1754143592558,26.69,164.97,164.96,6.19062209]
[1754143592753,0.69,164.97,164.95,0.06]
[1754143592959,0.69,164.96,164.95,0.06]
[1754143593259,26.69,164.96,164.95,0.06]
[1754143593463,6.88062209,164.96,164.95,0.06]
[1754143593760,0.69,164.96,164.95,0.06]
[1754143593926,0.69,164.96,164.95,6.25062209]
[1754143594559,26.0,164.97,164.95,6.25062209]
[1754143595146,26.69,164.96,164.95,0.06]
[1754143595955,6.88062209,164.96,164.95,0.06]
[1754143598537,13.07124418,164.96,164.95,0.06]
[1754143598940,0.69,164.96,164.95,0.06]
[1754143599140,13.07124418,164.96,164.95,0.06]
[1754143599763,35.9180038,164.96,164.95,0.06]
[1754143599947,39.98172537,164.96,164.95,0.06]
[1754143600455,35.9180038,164.96,164.95,0.06]
[1754143600842,29.85592815,164.96,164.95,0.06]
[1754143601965,35.9180038,164.96,164.95,0.06]
[1754143602156,29.85592815,164.96,164.95,0.06]
[1754143602880,35.9180038,164.96,164.95,0.06]
[1754143603048,35.9180038,164.96,164.94,0.06]
[1754143603049,6.19062209,164.95,164.94,0.06]
[1754143603252,6.88062209,164.95,164.94,0.06]
[1754143603452,42.78468397,164.91,164.86,0.06]
[1754143603673,6.19062209,164.87,164.86,0.06]
[1754143604054,6.88062209,164.87,164.86,0.06]
[1754143605581,0.69,164.87,164.86,0.06]
[1754143606464,26.0,164.87,164.86,0.06]
[1754143606663,26.0,164.87,164.86,6.40062209]
[1754143607500,26.0,164.88,164.86,6.40062209]
[1754143607665,0.69,164.91,164.86,0.06]
[1754143607872,0.69,164.91,164.87,6.19062209]
[1754143608394,26.0,164.89,164.87,6.19062209]
[1754143608684,26.0,164.9,164.88,6.19062209]
[1754143609370,32.19062209,164.92,164.88,6.19062209]
[1754143609565,0.69,164.91,164.88,6.19062209]
[1754143609770,26.0,164.9,164.88,6.19062209]
[1754143610375,26.0,164.9,164.86,0.06]
[1754143610376,26.0,164.91,164.89,6.34062209]
[1754143610555,26.0,164.91,164.89,6.19062209]
[1754143611394,26.0,164.93,164.9,6.19062209]
[1754143611596,0.69,164.94,164.9,6.19062209]
[1754143611597,26.0,164.92,164.9,6.19062209]
[1754143612092,26.0,164.93,164.91,6.19062209]
[1754143612287,26.69,164.93,164.91,6.19062209]
[1754143612591,26.0,164.92,164.9,6.19062209]
[1754143613163,26.0,164.9,164.89,6.19062209]
[1754143613477,26.0,164.9,164.88,6.19062209]
[1754143613674,26.0,164.9,164.86,0.06]
[1754143613675,26.0,164.9,164.87,6.19062209]
[1754143613882,26.0,164.88,164.86,6.25062209]
[1754143614070,26.69,164.88,164.86,0.06]
[1754143614394,26.69,164.88,164.86,6.25062209]
[1754143614565,26.0,164.88,164.86,6.25062209]
[1754143617591,0.69,164.9,164.86,6.25062209]
[1754143617792,26.0,164.91,164.86,6.25062209]
[1754143617991,0.69,164.89,164.86,6.25062209]
[1754143618610,32.88062209,164.91,164.86,6.25062209]
[1754143618781,0.69,164.9,164.87,6.19062209]
[1754143620184,0.69,164.89,164.86,6.25062209]
[1754143620390,0.69,164.88,164.86,6.25062209]
[1754143620697,0.69,164.9,164.87,6.19062209]
[1754143620911,0.7,164.94,164.89,6.19062209]
[1754143621086,0.7,164.94,164.89,6.34062209]
[1754143621402,0.7,164.94,164.92,6.19062209]